fUST/lending_fUST_20260604
["ID","MTS","AMOUNT","RATE_DAILY","PERIOD"]
[424025417,1780554644000,-500.0,0.00015068,2]
[424025425,1780554644000,-1360.94,0.00015068,2]
[424025421,1780554644000,-500.0,0.00015068,2]
[424025422,1780554644000,-500.0,0.00015068,2]
[424025423,1780554644000,-500.0,0.00015068,2]
[424025420,1780554644000,-532.76410377,0.00015068,2]
[424025419,1780554644000,-500.0,0.00015068,2]
[424025426,1780554644000,-500.0,0.00015068,2]
[424025428,1780554644000,-548.96098662,0.00015068,2]
[424025438,1780554644000,-530.54921107,0.00015342,2]
[424025441,1780554644000,-500.0,0.00015342,2]
[424025440,1780554644000,-500.0,0.00015342,2]
[424025427,1780554644000,-500.0,0.00015068,2]
[424025430,1780554644000,-500.0,0.00015068,2]
[424025429,1780554644000,-507.59031832,0.00015068,2]
[424025437,1780554644000,-508.52126641,0.00015342,2]
[424025431,1780554644000,-500.0,0.00015068,2]
[424025434,1780554644000,-500.0,0.00015342,2]
[424025436,1780554644000,-507.51852215,0.00015342,2]
[424025433,1780554644000,-151.16821021,0.00015101,2]
[424025375,1780554644000,-533.98327289,0.00014794,2]
[424025442,1780554644000,-500.0,0.00015342,2]
[424025396,1780554644000,-540.27727967,0.00014794,2]
[424025411,1780554644000,-351.51963306,0.00015068,2]
[424025418,1780554644000,-500.0,0.00015068,2]
[424025401,1780554644000,-500.0,0.00015068,2]
[424025378,1780554644000,-153.78591013,0.00014794,2]
[424025410,1780554644000,-500.0,0.00015068,2]
[424025379,1780554644000,-500.0,0.00014794,2]
[424025365,1780554644000,-618.59161578,0.00014794,2]
[424025368,1780554644000,-500.0,0.00014794,2]
[424025371,1780554644000,-500.0,0.00014794,2]
[424025370,1780554644000,-288.87302501,0.00014794,2]
[424025373,1780554644000,-500.0,0.00014794,2]
[424025372,1780554644000,-500.0,0.00014794,2]
[424025381,1780554644000,-500.0,0.00014794,2]
[424025389,1780554644000,-500.0,0.00014794,2]
[424025390,1780554644000,-500.0,0.00014794,2]
[424025391,1780554644000,-500.0,0.00014794,2]
[424025380,1780554644000,-500.0,0.00014794,2]
[424025392,1780554644000,-500.0,0.00014794,2]
[424025367,1780554644000,-544.37220082,0.00014794,2]
[424025384,1780554644000,-500.0,0.00014794,2]
[424025382,1780554644000,-500.0,0.00014794,2]
[424025409,1780554644000,-500.0,0.00015068,2]
[424025403,1780554644000,-500.0,0.00015068,2]
[424025402,1780554644000,-500.0,0.00015068,2]
[424025398,1780554644000,-3110.0,0.00015,2]
[424025407,1780554644000,-500.0,0.00015068,2]
[424025397,1780554644000,-500.0,0.00014794,2]
[424025399,1780554644000,-500.0,0.00015068,2]
[424025388,1780554644000,-1360.94,0.00014794,2]
[424025383,1780554644000,-500.0,0.00014794,2]
[424025395,1780554644000,-500.0,0.00014794,2]
[424025394,1780554644000,-593.07197283,0.00014794,2]
[424025386,1780554644000,-500.0,0.00014794,2]
[424025387,1780554644000,-500.0,0.00014794,2]
[424025500,1780554645000,-500.0,0.0001589,2]
[424025498,1780554645000,-485.97431223,0.0001589,2]
[424025497,1780554645000,-500.0,0.0001589,2]
[424025496,1780554645000,-500.0,0.0001589,2]
[424025480,1780554645000,-500.0,0.00015616,2]
[424025485,1780554645000,-500.0,0.00015616,2]
[424025479,1780554645000,-500.0,0.00015616,2]
[424025478,1780554645000,-500.0,0.00015616,2]
[424025481,1780554645000,-500.0,0.00015616,2]
[424025483,1780554645000,-500.0,0.00015616,2]
[424025484,1780554645000,-500.0,0.00015616,2]
[424025499,1780554645000,-500.0,0.0001589,2]
[424025482,1780554645000,-500.0,0.00015616,2]
[424025501,1780554645000,-500.0,0.0001589,2]
[424025504,1780554645000,-500.0,0.0001589,2]
[424025490,1780554645000,-319.21021016,0.00015645,2]
[424025491,1780554645000,-500.0,0.0001589,2]
[424025495,1780554645000,-500.0,0.0001589,2]
[424025503,1780554645000,-166.82,0.0001589,2]
[424025493,1780554645000,-500.0,0.0001589,2]
[424025506,1780554645000,-500.0,0.0001589,2]
[424025505,1780554645000,-500.0,0.0001589,2]
[424025513,1780554645000,-500.0,0.00016164,2]
[424025508,1780554645000,-1360.94,0.0001589,2]
[424025515,1780554645000,-500.0,0.00016164,2]
[424025507,1780554645000,-500.0,0.0001589,2]
[424025509,1780554645000,-500.0,0.0001589,2]
[424025488,1780554645000,-500.0,0.00015616,2]
[424025489,1780554645000,-500.0,0.00015616,2]
[424025486,1780554645000,-303.05765715,0.00015616,2]
[424025512,1780554645000,-1000.0,0.00015974,2]
[424025477,1780554645000,-500.0,0.00015616,2]
[424025444,1780554645000,-413.66769749,0.00015342,2]
[424025448,1780554645000,-500.0,0.00015342,2]
[424025447,1780554645000,-500.0,0.00015342,2]
[424025445,1780554645000,-500.0,0.00015342,2]
[424025450,1780554645000,-500.0,0.00015342,2]
[424025449,1780554645000,-500.0,0.00015342,2]
[424025443,1780554645000,-500.0,0.00015342,2]
[424025451,1780554645000,-500.0,0.00015342,2]
[424025455,1780554645000,-500.0,0.00015342,2]
[424025456,1780554645000,-1360.94,0.00015342,2]
[424025453,1780554645000,-500.0,0.00015342,2]
[424025452,1780554645000,-500.0,0.00015342,2]
[424025457,1780554645000,-178.15652342,0.00015342,2]
[424025459,1780554645000,-197.17104487,0.00015342,2]
[424025474,1780554645000,-500.0,0.00015616,2]
[424025472,1780554645000,-500.0,0.00015616,2]
[424025470,1780554645000,-1837.0,0.00015601,2]
[424025473,1780554645000,-500.0,0.00015616,2]
[424025458,1780554645000,-500.0,0.00015342,2]
[424025460,1780554645000,-500.0,0.00015342,2]
[424025465,1780554645000,-3631.0,0.00015601,2]
[424025467,1780554645000,-202.222,0.00015601,2]
[424025461,1780554645000,-196.84,0.00015482,2]
[424025464,1780554645000,-2206.0,0.00015601,2]
[424025468,1780554645000,-444.0,0.00015601,2]
[424025463,1780554645000,-256.03718043,0.00015554,2]
[424025466,1780554645000,-541.065,0.00015601,2]
[424025476,1780554645000,-500.0,0.00015616,2]
[424025475,1780554645000,-500.0,0.00015616,2]
[424025487,1780554645000,-1360.94,0.00015616,2]
[424025510,1780554645000,-500.0,0.0001589,2]
[424025533,1780554645000,-232.597,0.00016268,2]
[424025516,1780554645000,-500.0,0.00016164,2]
[424025556,1780554645000,-500.0,0.00016712,2]
[424025548,1780554645000,-500.0,0.00016438,2]
[424025549,1780554645000,-403.20703894,0.00016438,2]
[424025550,1780554645000,-411.72,0.00016712,2]
[424025560,1780554645000,-500.0,0.00016986,2]
[424025561,1780554645000,-1360.94,0.00016986,2]
[424025562,1780554645000,-500.0,0.00016986,2]
[424025566,1780554645000,-500.0,0.0001726,2]
[424025565,1780554645000,-500.0,0.0001726,2]
[424025564,1780554645000,-4036.04982469,0.000172,2]
[424025567,1780554645000,-500.0,0.0001726,2]
[424025568,1780554645000,-1360.94,0.0001726,2]
[424025570,1780554645000,-4036.04982469,0.000173,2]
[424025571,1780554645000,-1000.0,0.00017477,5]
[424025569,1780554645000,-321.73710391,0.0001726,2]
[424025574,1780554645000,-500.0,0.00017534,2]
[424025573,1780554645000,-4036.04982469,0.000175,2]
[424025585,1780554645000,-195.3712015,0.00017766,2]
[424025575,1780554645000,-500.0,0.00017534,2]
[424025583,1780554645000,-188.98865645,0.00017766,2]
[424025586,1780554645000,-500.0,0.00017808,2]
[424025584,1780554645000,-178.81253675,0.00017766,2]
[424025587,1780554645000,-500.0,0.00017808,2]
[424025576,1780554645000,-500.0,0.00017534,2]
[424025579,1780554645000,-244.0,0.00017571,2]
[424025582,1780554645000,-185.92816941,0.00017753,2]
[424025578,1780554645000,-1000.0,0.00017571,2]
[424025577,1780554645000,-1360.94,0.00017534,2]
[424025514,1780554645000,-500.0,0.00016164,2]
[424025545,1780554645000,-500.0,0.00016438,2]
[424025552,1780554645000,-500.0,0.00016712,2]
[424025588,1780554645000,-500.0,0.00017808,2]
[424025558,1780554645000,-500.0,0.00016986,2]
[424025559,1780554645000,-500.0,0.00016986,2]
[424025519,1780554645000,-500.0,0.00016164,2]
[424025522,1780554645000,-500.0,0.00016164,2]
[424025521,1780554645000,-500.0,0.00016164,2]
[424025518,1780554645000,-500.0,0.00016164,2]
[424025529,1780554645000,-500.0,0.00016164,2]
[424025527,1780554645000,-1360.94,0.00016164,2]
[424025528,1780554645000,-500.0,0.00016164,2]
[424025524,1780554645000,-500.0,0.00016164,2]
[424025525,1780554645000,-500.0,0.00016164,2]
[424025526,1780554645000,-215.79059068,0.00016164,2]
[424025532,1780554645000,-150.204,0.00016268,2]
[424025541,1780554645000,-500.0,0.00016438,2]
[424025530,1780554645000,-150.338,0.00016268,2]
[424025520,1780554645000,-500.0,0.00016164,2]
[424025542,1780554645000,-641.29452971,0.00016438,2]
[424025543,1780554645000,-500.0,0.00016438,2]
[424025553,1780554645000,-500.0,0.00016712,2]
[424025551,1780554645000,-500.0,0.00016712,2]
[424025546,1780554645000,-1360.94,0.00016438,2]
[424025544,1780554645000,-500.0,0.00016438,2]
[424025540,1780554645000,-642.01,0.00016438,2]
[424025554,1780554645000,-1360.94,0.00016712,2]
[424025557,1780554645000,-152.0,0.0001682,30]
[424025536,1780554645000,-500.0,0.00016438,2]
[424025535,1780554645000,-500.0,0.00016438,2]
[424025581,1780554645000,-4036.04982469,0.000177,2]
[424025538,1780554645000,-563.54632166,0.00016438,2]
[424025537,1780554645000,-500.0,0.00016438,2]
[424025534,1780554645000,-500.0,0.00016438,2]
[424025628,1780554646000,-4036.04982469,0.000184,2]
[424025632,1780554646000,-4036.04982469,0.000186,2]
[424025626,1780554646000,-878.0679054,0.000184,2]
[424025627,1780554646000,-259.56383023,0.000184,2]
[424025609,1780554646000,-188.81856618,0.00018107,2]
[424025624,1780554646000,-639.02,0.00018356,2]
[424025622,1780554646000,-500.0,0.00018356,2]
[424025630,1780554646000,-259.56383023,0.000185,2]
[424025625,1780554646000,-1360.94,0.00018356,2]
[424025633,1780554646000,-2206.0,0.00018601,2]
[424025629,1780554646000,-878.0679054,0.000185,2]
[424025645,1780554646000,-4036.04982469,0.000188,2]
[424025634,1780554646000,-3631.0,0.00018601,2]
[424025635,1780554646000,-185.0,0.00018601,2]
[424025637,1780554646000,-1837.0,0.00018601,2]
[424025644,1780554646000,-824.0,0.00018773,2]
[424025638,1780554646000,-328.75,0.0001863,2]
[424025647,1780554646000,-1360.94,0.00018904,2]
[424025643,1780554646000,-824.0,0.00018765,2]
[424025651,1780554646000,-824.0,0.0001904,2]
[424025612,1780554646000,-371.85633882,0.00018107,2]
[424025653,1780554646000,-300.0,0.00019178,2]
[424025636,1780554646000,-444.0,0.00018601,2]
[424025611,1780554646000,-243.53997298,0.00018107,2]
[424025606,1780554646000,-1360.94,0.00018082,2]
[424025615,1780554646000,-357.62507351,0.0001812,2]
[424025641,1780554646000,-878.0679054,0.000187,2]
[424025590,1780554646000,-1360.94,0.00017808,2]
[424025591,1780554646000,-186.34216047,0.0001783,2]
[424025593,1780554646000,-161.88957614,0.0001783,2]
[424025592,1780554646000,-218.72474481,0.0001783,2]
[424025604,1780554646000,-500.0,0.00018082,2]
[424025596,1780554646000,-172.39818397,0.00017964,2]
[424025595,1780554646000,-4036.04982469,0.000179,2]
[424025602,1780554646000,-500.0,0.00018082,2]
[424025603,1780554646000,-324.23,0.00018082,2]
[424025599,1780554646000,-878.0679054,0.00018,2]
[424025610,1780554646000,-156.27998573,0.00018107,2]
[424025594,1780554646000,-171.03736138,0.0001783,2]
[424025601,1780554646000,-4036.04982469,0.00018,2]
[424025598,1780554646000,-189.68424948,0.00017964,2]
[424025608,1780554646000,-166.76194805,0.00018107,2]
[424025617,1780554646000,-437.44948961,0.00018185,2]
[424025618,1780554646000,-342.07472276,0.00018185,2]
[424025616,1780554646000,-172.94940498,0.0001812,2]
[424025619,1780554646000,-878.0679054,0.000182,2]
[424025620,1780554646000,-259.56383023,0.000182,2]
[424025621,1780554646000,-4036.04982469,0.000182,2]
[424025607,1780554646000,-164.92372139,0.00018107,2]
[424025613,1780554646000,-377.97731289,0.0001812,2]
[424025600,1780554646000,-259.56383023,0.00018,2]
[424025649,1780554646000,-644.2144984,0.00018936,2]
[424025670,1780554646000,-242.73207,0.00019178,2]
[424025642,1780554646000,-259.56383023,0.000187,2]
[424025708,1780554646000,-11045.90222743,0.000196,2]
[424025710,1780554646000,-458.45554086,0.000196,2]
[424025711,1780554646000,-620.92722471,0.000196,2]
[424025713,1780554646000,-24.75555334,0.000196,2]
[424025717,1780554646000,-160.0,0.000196,2]
[424025719,1780554646000,-490.397381,0.000196,2]
[424025721,1780554646000,-104.04897793,0.000196,2]
[424025716,1780554646000,-1634.239837,0.000196,2]
[424025714,1780554646000,-135.24444666,0.000196,2]
[424025718,1780554646000,-325.19869,0.000196,2]
[424025715,1780554646000,-897.119918,0.000196,2]
[424025723,1780554646000,-1907.4883154,0.00012771,2]
[424025725,1780554646000,-3092.5116846,0.00012771,2]
[424025728,1780554646000,-500.0,0.00014246,2]
[424025732,1780554646000,-500.0,0.00015068,2]
[424025730,1780554646000,-141.81368246,0.0001452,2]
[424025727,1780554646000,-500.0,0.00013972,2]
[424025731,1780554646000,-500.0,0.00014794,2]
[424025729,1780554646000,-358.18631754,0.0001452,2]
[424025737,1780554646000,-500.0,0.00016164,2]
[424025736,1780554646000,-500.0,0.0001589,2]
[424025735,1780554646000,-500.0,0.00015616,2]
[424025640,1780554646000,-1360.94,0.0001863,2]
[424025707,1780554646000,-6142.642496,0.000196,2]
[424025689,1780554646000,-242.73207,0.00019178,2]
[424025734,1780554646000,-500.0,0.00015342,2]
[424025693,1780554646000,-242.73207,0.00019178,2]
[424025688,1780554646000,-242.73207,0.00019178,2]
[424025659,1780554646000,-242.73207,0.00019178,2]
[424025661,1780554646000,-242.73207,0.00019178,2]
[424025668,1780554646000,-242.73207,0.00019178,2]
[424025657,1780554646000,-242.73207,0.00019178,2]
[424025655,1780554646000,-1360.94,0.00019178,2]
[424025666,1780554646000,-242.73207,0.00019178,2]
[424025664,1780554646000,-242.73207,0.00019178,2]
[424025672,1780554646000,-242.73207,0.00019178,2]
[424025685,1780554646000,-242.73207,0.00019178,2]
[424025678,1780554646000,-242.73207,0.00019178,2]
[424025676,1780554646000,-242.73207,0.00019178,2]
[424025681,1780554646000,-242.73207,0.00019178,2]
[424025695,1780554646000,-242.73207,0.00019178,2]
[424025691,1780554646000,-242.73207,0.00019178,2]
[424025674,1780554646000,-242.73207,0.00019178,2]
[424025705,1780554646000,-160.0,0.000196,2]
[424025704,1780554646000,-300.0,0.00019589,3]
[424025702,1780554646000,-1360.94,0.00019452,2]
[424025701,1780554646000,-492.0,0.00019328,2]
[424025700,1780554646000,-1000.0,0.00019328,2]
[424025698,1780554646000,-242.732078,0.00019178,2]
[424025683,1780554646000,-242.73207,0.00019178,2]
[424025703,1780554646000,-4909.53468898,0.00019544,2]
[424025747,1780554647000,-202.354196,0.000196,2]
[424025739,1780554647000,-239.40933299,0.00016712,2]
[424025738,1780554647000,-500.0,0.00016438,2]
[424025741,1780554647000,-260.59066701,0.00016712,2]
[424025743,1780554647000,-399.89070701,0.00016986,2]
[424025746,1780554647000,-105.66681007,0.000196,2]
[424025748,1780554647000,-824.0,0.0001968,2]
[424025742,1780554647000,-100.10929299,0.00016986,2]
[424025745,1780554647000,-532.74,0.0001726,2]
[424025750,1780554647000,-1360.94,0.00019726,2]
[424025753,1780554647000,-252.942742,0.00019796,2]
[424025754,1780554647000,-345.885484,0.00019796,2]
[424025752,1780554647000,-160.0,0.00019796,2]
[424025756,1780554647000,-41591.81751239,0.00019965,2]
[424025757,1780554647000,-17273.07059673,0.00019965,2]
[424025755,1780554647000,-824.0,0.00019873,2]
[424025749,1780554647000,-209.715787,0.00019698,2]
[424026750,1780554848000,-2423.69059139,0.00012392,2]
[424030206,1780555831000,-108.36091388,0.00011457,2]
[424030199,1780555831000,-5000.0,0.00011342,2]
[424030203,1780555831000,-269.71491113,0.00011457,2]
[424030208,1780555831000,-590.61678268,0.00011572,2]
[424030201,1780555831000,-4621.92417499,0.00011457,2]
[424030475,1780555838000,-500.0,0.00013697,2]
[424030490,1780555838000,-500.0,0.00013697,2]
[424030482,1780555838000,-500.0,0.00013697,2]
[424030479,1780555838000,-500.0,0.00013697,2]
[424030488,1780555838000,-514.63089331,0.00013697,2]
[424030486,1780555838000,-500.0,0.00013697,2]
[424030484,1780555838000,-500.0,0.00013697,2]
[424030492,1780555838000,-500.0,0.00013697,2]
[424030473,1780555838000,-500.0,0.00013697,2]
[424030477,1780555838000,-500.0,0.00013697,2]
[424030480,1780555838000,-500.0,0.00013697,2]
[424030471,1780555838000,-500.0,0.00013697,2]
[424030463,1780555838000,-500.0,0.00013697,2]
[424030461,1780555838000,-500.0,0.00013697,2]
[424030469,1780555838000,-500.0,0.00013697,2]
[424030467,1780555838000,-500.0,0.00013697,2]
[424030450,1780555838000,-210.57885041,0.00012292,2]
[424030456,1780555838000,-500.0,0.00013697,2]
[424030460,1780555838000,-500.0,0.00013697,2]
[424030454,1780555838000,-15000.0,0.00013302,2]
[424030452,1780555838000,-253.0,0.00012729,2]
[424030442,1780555838000,-1837.43019471,0.00011456,2]
[424030448,1780555838000,-300.0,0.00011925,2]
[424030446,1780555838000,-609.38321732,0.00011572,2]
[424030506,1780555838000,-500.0,0.00013697,2]
[424030465,1780555838000,-500.0,0.00013697,2]
[424030508,1780555838000,-500.0,0.00013697,2]
[424030444,1780555838000,-1359.41676129,0.00011456,2]
[424030512,1780555838000,-500.0,0.00013697,2]
[424030548,1780555838000,-500.0,0.00013698,2]
[424030550,1780555838000,-500.0,0.00013698,2]
[424030542,1780555838000,-500.0,0.00013698,2]
[424030546,1780555838000,-500.0,0.00013698,2]
[424030544,1780555838000,-500.0,0.00013698,2]
[424030540,1780555838000,-500.0,0.00013698,2]
[424030537,1780555838000,-500.0,0.00013698,2]
[424030526,1780555838000,-500.0,0.00013698,2]
[424030539,1780555838000,-500.0,0.00013698,2]
[424030530,1780555838000,-537.32,0.00013698,2]
[424030528,1780555838000,-500.0,0.00013698,2]
[424030535,1780555838000,-500.0,0.00013698,2]
[424030533,1780555838000,-500.0,0.00013698,2]
[424030510,1780555838000,-500.0,0.00013697,2]
[424030525,1780555838000,-398.78535684,0.00013698,2]
[424030498,1780555838000,-500.0,0.00013697,2]
[424030502,1780555838000,-500.0,0.00013697,2]
[424030513,1780555838000,-500.0,0.00013697,2]
[424030496,1780555838000,-489.40557918,0.00013697,2]
[424030494,1780555838000,-500.0,0.00013697,2]
[424030500,1780555838000,-500.0,0.00013697,2]
[424030532,1780555838000,-500.0,0.00013698,2]
[424030504,1780555838000,-500.0,0.00013697,2]
[424030515,1780555838000,-500.0,0.00013697,2]
[424030521,1780555838000,-500.0,0.00013698,2]
[424030519,1780555838000,-500.0,0.00013698,2]
[424030523,1780555838000,-500.0,0.00013698,2]
[424030517,1780555838000,-500.0,0.00013698,2]
[424030592,1780555839000,-500.0,0.00013698,2]
[424030593,1780555839000,-500.0,0.00013698,2]
[424030602,1780555839000,-500.0,0.00013698,2]
[424030595,1780555839000,-500.0,0.00013698,2]
[424030598,1780555839000,-500.0,0.00013698,2]
[424030596,1780555839000,-500.0,0.00013698,2]
[424030603,1780555839000,-500.0,0.00013698,2]
[424030601,1780555839000,-500.0,0.00013698,2]
[424030599,1780555839000,-500.0,0.00013698,2]
[424030591,1780555839000,-500.0,0.00013698,2]
[424030594,1780555839000,-500.0,0.00013698,2]
[424030600,1780555839000,-500.0,0.00013698,2]
[424030604,1780555839000,-500.0,0.00013698,2]
[424030615,1780555839000,-500.0,0.00013698,2]
[424030608,1780555839000,-500.0,0.00013698,2]
[424030606,1780555839000,-500.0,0.00013698,2]
[424030616,1780555839000,-500.0,0.00013698,2]
[424030597,1780555839000,-500.0,0.00013698,2]
[424030590,1780555839000,-500.0,0.00013698,2]
[424030575,1780555839000,-500.0,0.00013698,2]
[424030589,1780555839000,-500.0,0.00013698,2]
[424030554,1780555839000,-500.0,0.00013698,2]
[424030552,1780555839000,-501.9589583,0.00013698,2]
[424030556,1780555839000,-1300.22,0.00013698,2]
[424030558,1780555839000,-500.0,0.00013698,2]
[424030565,1780555839000,-500.0,0.00013698,2]
[424030563,1780555839000,-500.0,0.00013698,2]
[424030560,1780555839000,-504.04183069,0.00013698,2]
[424030567,1780555839000,-500.0,0.00013698,2]
[424030569,1780555839000,-500.0,0.00013698,2]
[424030579,1780555839000,-500.0,0.00013698,2]
[424030572,1780555839000,-500.0,0.00013698,2]
[424030577,1780555839000,-500.0,0.00013698,2]
[424030581,1780555839000,-1287.79,0.00013698,2]
[424030571,1780555839000,-500.0,0.00013698,2]
[424030585,1780555839000,-500.0,0.00013698,2]
[424030583,1780555839000,-500.0,0.00013698,2]
[424030587,1780555839000,-500.0,0.00013698,2]
[424030586,1780555839000,-500.0,0.00013698,2]
[424030607,1780555839000,-500.0,0.00013698,2]
[424030588,1780555839000,-500.0,0.00013698,2]
[424030610,1780555839000,-500.0,0.00013698,2]
[424030605,1780555839000,-313.89454351,0.00013698,2]
[424030612,1780555839000,-500.0,0.00013698,2]
[424030634,1780555839000,-500.0,0.00013698,2]
[424030633,1780555839000,-500.0,0.00013698,2]
[424030638,1780555839000,-501.02343158,0.00013698,2]
[424030637,1780555839000,-500.0,0.00013698,2]
[424030635,1780555839000,-500.0,0.00013698,2]
[424030614,1780555839000,-500.0,0.00013698,2]
[424030648,1780555839000,-510.46268296,0.00013698,2]
[424030649,1780555839000,-513.75038133,0.0001377,2]
[424030647,1780555839000,-500.0,0.00013698,2]
[424030646,1780555839000,-500.0,0.00013698,2]
[424030645,1780555839000,-500.0,0.00013698,2]
[424030655,1780555839000,-121103.55068241,0.0001387,2]
[424030656,1780555839000,-451.40333634,0.0001387,2]
[424030653,1780555839000,-2923.10590752,0.0001387,2]
[424030654,1780555839000,-589853.42368952,0.0001387,2]
[424030650,1780555839000,-1946.37193567,0.0001377,2]
[424030651,1780555839000,-634.08642727,0.00013869,2]
[424030652,1780555839000,-232.2071598,0.00013869,2]
[424030657,1780555839000,-3388.60480203,0.0001387,2]
[424030631,1780555839000,-500.0,0.00013698,2]
[424030632,1780555839000,-500.0,0.00013698,2]
[424030644,1780555839000,-500.0,0.00013698,2]
[424030639,1780555839000,-500.0,0.00013698,2]
[424030609,1780555839000,-467.62748904,0.00013698,2]
[424030643,1780555839000,-500.0,0.00013698,2]
[424030617,1780555839000,-500.0,0.00013698,2]
[424030622,1780555839000,-500.0,0.00013698,2]
[424030618,1780555839000,-501.43589391,0.00013698,2]
[424030621,1780555839000,-500.0,0.00013698,2]
[424030620,1780555839000,-501.78537629,0.00013698,2]
[424030619,1780555839000,-500.0,0.00013698,2]
[424030625,1780555839000,-500.0,0.00013698,2]
[424030613,1780555839000,-500.0,0.00013698,2]
[424030629,1780555839000,-500.0,0.00013698,2]
[424030626,1780555839000,-500.0,0.00013698,2]
[424030640,1780555839000,-500.0,0.00013698,2]
[424030641,1780555839000,-500.0,0.00013698,2]
[424030642,1780555839000,-500.0,0.00013698,2]
[424030611,1780555839000,-500.0,0.00013698,2]
[424030628,1780555839000,-500.0,0.00013698,2]
[424030623,1780555839000,-500.0,0.00013698,2]
[424030627,1780555839000,-500.0,0.00013698,2]
[424030630,1780555839000,-500.0,0.00013698,2]
[424030624,1780555839000,-500.0,0.00013698,2]
[424030668,1780555840000,-12367.6,0.0001387,2]
[424030667,1780555840000,-500.0,0.00013698,2]
[424030669,1780555841000,-429.42624312,0.0001387,2]
[424030670,1780555841000,-1075.08886253,0.0001387,2]
[424030687,1780555843000,-4580.2118161,0.0001387,2]
[424030688,1780555843000,-4980.29338595,0.0001387,2]
[424030686,1780555843000,-2028.81591068,0.0001387,2]
[424030684,1780555843000,-500.0,0.00013698,2]
[424030683,1780555843000,-500.0,0.00013698,2]
[424030685,1780555843000,-27751.32402978,0.0001387,2]
[424030702,1780555846000,-425.61998,0.0001387,2]
[424030711,1780555846000,-299.77745085,0.0001387,2]
[424030710,1780555846000,-15240.29673811,0.0001387,2]
[424030709,1780555846000,-32603.19184035,0.0001387,2]
[424030708,1780555846000,-2329.18508868,0.0001387,2]
[424030701,1780555846000,-500.0,0.00013698,2]
[424030899,1780556757000,-1882.11546948,0.00012323,2]
[424031061,1780557033000,-500.0,0.00013197,2]
[424031074,1780557033000,-677.76535421,0.00013198,2]
[424031048,1780557033000,-5000.0,0.00012447,2]
[424031072,1780557033000,-953.50866809,0.00013198,2]
[424031050,1780557033000,-2633.7573282,0.00012573,2]
[424031059,1780557033000,-332.15617546,0.00013197,2]
[424031055,1780557033000,-160.70234936,0.00013197,2]
[424031063,1780557033000,-162.54501186,0.00013197,2]
[424031066,1780557033000,-3109.34792673,0.00013198,2]
[424031054,1780557033000,-443.86049909,0.00013197,2]
[424031052,1780557033000,-390.5145437,0.00013197,2]
[424031057,1780557033000,-500.0,0.00013197,2]
[424031068,1780557033000,-1745.00179108,0.00013198,2]
[424031076,1780557033000,-1173.51518978,0.00013198,2]
[424031064,1780557033000,-73602.13783434,0.00013198,2]
[424031337,1780557038000,-749.91245089,0.00013198,2]
[424031584,1780557040000,-4094.98504859,0.00013198,2]
[424031569,1780557040000,-3779.90698828,0.00013198,2]
[424031704,1780557043000,-3995.50899991,0.00013198,2]
[424031705,1780557043000,-8619.06727251,0.00013198,2]
[424031708,1780557043000,-5043.8714538,0.00013198,2]
[424031713,1780557043000,-251.11704093,0.00013198,2]
[424031706,1780557043000,-4588.39055034,0.00013198,2]
[424031710,1780557043000,-8407.62300174,0.00013198,2]
[424031715,1780557043000,-1070.72772645,0.00013198,2]